fUSD/lending_fUSD_20260613
["ID","MTS","AMOUNT","RATE_DAILY","PERIOD"]
[424926963,1781280028000,-617.42308514,7.999e-05,2]
[424926965,1781280081000,-733.12987994,7.999e-05,2]
[424926966,1781280135000,-733.12987994,7.999e-05,2]
[424926967,1781280188000,-150.0,8e-05,2]
[424926968,1781280242000,-3118.06343147,8e-05,2]
[424926969,1781280338000,-375.60548154,8e-05,2]
[424926970,1781280437000,500.0,8.7e-05,3]
[424926971,1781280439000,1100.0,8.8e-05,3]
[424926972,1781280441000,1700.0,8.9e-05,3]
[424926973,1781280443000,2300.0,9e-05,3]
[424926974,1781280449000,-241.22702608,7.998e-05,2]
[424926977,1781280451000,-570.8005101,7.998e-05,2]
[424926976,1781280451000,-246.52337426,7.998e-05,2]
[424926978,1781280451000,-10.37929435,7.998e-05,2]
[424926975,1781280451000,-258.77297392,7.998e-05,2]
[424926979,1781280516000,151.0,0.00021,30]
[424926980,1781280525000,151.0,0.00021,30]
[424926990,1781280545000,-1178.39955739,7.997e-05,2]
[424926995,1781280545000,-1178.39955739,7.997e-05,2]
[424926996,1781280545000,-1178.39955739,7.997e-05,2]
[424926993,1781280545000,-1178.39955739,7.997e-05,2]
[424926994,1781280545000,-1178.39955739,7.997e-05,2]
[424926992,1781280545000,-1178.39955739,7.997e-05,2]
[424926991,1781280545000,-1178.39955739,7.997e-05,2]
[424926983,1781280545000,-150.0,7.996e-05,2]
[424926988,1781280545000,-246.44656877,7.997e-05,2]
[424926985,1781280545000,-500.0,7.997e-05,2]
[424926986,1781280545000,-500.0,7.997e-05,2]
[424926987,1781280545000,-500.0,7.997e-05,2]
[424926999,1781280545000,-1178.39955739,7.997e-05,2]
[424926984,1781280545000,-172.56636199,7.997e-05,2]
[424926982,1781280545000,-300.0,7.996e-05,2]
[424926989,1781280545000,-1178.39955739,7.997e-05,2]
[424926997,1781280545000,-1178.39955739,7.997e-05,2]
[424926998,1781280545000,-1178.39955739,7.997e-05,2]
[424927001,1781280545000,-1178.39955739,7.997e-05,2]
[424927018,1781280545000,-1178.39955739,7.997e-05,2]
[424927017,1781280545000,-1178.39955739,7.997e-05,2]
[424927000,1781280545000,-1178.39955739,7.997e-05,2]
[424927015,1781280545000,-1178.39955739,7.997e-05,2]
[424927014,1781280545000,-1178.39955739,7.997e-05,2]
[424927013,1781280545000,-1178.39955739,7.997e-05,2]
[424927012,1781280545000,-1178.39955739,7.997e-05,2]
[424927011,1781280545000,-1178.39955739,7.997e-05,2]
[424927009,1781280545000,-1178.39955739,7.997e-05,2]
[424927016,1781280545000,-1178.39955739,7.997e-05,2]
[424927008,1781280545000,-1178.39955739,7.997e-05,2]
[424927010,1781280545000,-1178.39955739,7.997e-05,2]
[424927004,1781280545000,-1178.39955739,7.997e-05,2]
[424927002,1781280545000,-1178.39955739,7.997e-05,2]
[424927003,1781280545000,-1178.39955739,7.997e-05,2]
[424927005,1781280545000,-1178.39955739,7.997e-05,2]
[424927007,1781280545000,-1178.39955739,7.997e-05,2]
[424927006,1781280545000,-1178.39955739,7.997e-05,2]
[424927034,1781280546000,-1178.39955739,7.997e-05,2]
[424927031,1781280546000,-1178.39955739,7.997e-05,2]
[424927032,1781280546000,-1178.39955739,7.997e-05,2]
[424927029,1781280546000,-1178.39955739,7.997e-05,2]
[424927030,1781280546000,-1178.39955739,7.997e-05,2]
[424927028,1781280546000,-1178.39955739,7.997e-05,2]
[424927025,1781280546000,-1178.39955739,7.997e-05,2]
[424927026,1781280546000,-1178.39955739,7.997e-05,2]
[424927021,1781280546000,-1178.39955739,7.997e-05,2]
[424927022,1781280546000,-1178.39955739,7.997e-05,2]
[424927020,1781280546000,-1178.39955739,7.997e-05,2]
[424927019,1781280546000,-1178.39955739,7.997e-05,2]
[424927033,1781280546000,-1178.39955739,7.997e-05,2]
[424927027,1781280546000,-1178.39955739,7.997e-05,2]
[424927035,1781280546000,-1178.39955739,7.997e-05,2]
[424927023,1781280546000,-1178.39955739,7.997e-05,2]
[424927038,1781280546000,-1178.39955739,7.997e-05,2]
[424927036,1781280546000,-1178.39955739,7.997e-05,2]
[424927052,1781280546000,-1159.98706431,7.997e-05,2]
[424927051,1781280546000,-1159.98706431,7.997e-05,2]
[424927049,1781280546000,-1159.98706431,7.997e-05,2]
[424927047,1781280546000,-1159.98706431,7.997e-05,2]
[424927050,1781280546000,-1159.98706431,7.997e-05,2]
[424927048,1781280546000,-1159.98706431,7.997e-05,2]
[424927042,1781280546000,-761.60123243,7.997e-05,2]
[424927024,1781280546000,-1178.39955739,7.997e-05,2]
[424927046,1781280546000,-1178.39955739,7.997e-05,2]
[424927044,1781280546000,-1178.39955739,7.997e-05,2]
[424927039,1781280546000,-1178.39955739,7.997e-05,2]
[424927040,1781280546000,-1178.39955739,7.997e-05,2]
[424927037,1781280546000,-1178.39955739,7.997e-05,2]
[424927045,1781280546000,-1178.39955739,7.997e-05,2]
[424927043,1781280546000,-1178.39955739,7.997e-05,2]
[424927041,1781280546000,-416.79832496,7.997e-05,2]
[424927053,1781280547000,-1159.98706431,7.997e-05,2]
[424927054,1781280547000,-1159.98706431,7.997e-05,2]
[424927055,1781280547000,-1159.98706431,7.997e-05,2]
[424927057,1781280547000,-1159.98706431,7.997e-05,2]
[424927056,1781280547000,-1159.98706431,7.997e-05,2]
[424927058,1781280547000,-1159.98706431,7.997e-05,2]
[424927059,1781280547000,-1159.98706431,7.997e-05,2]
[424927061,1781280547000,-1159.98706431,7.997e-05,2]
[424927060,1781280547000,-1159.98706431,7.997e-05,2]
[424927062,1781280547000,-1159.98706431,7.997e-05,2]
[424927065,1781280547000,-1159.98706431,7.997e-05,2]
[424927072,1781280547000,-187.43749859,8e-05,2]
[424927071,1781280547000,-1159.98706431,7.997e-05,2]
[424927070,1781280547000,-1159.98706431,7.997e-05,2]
[424927069,1781280547000,-1159.98706431,7.997e-05,2]
[424927073,1781280547000,-78.64919167,8e-05,2]
[424927067,1781280547000,-1159.98706431,7.997e-05,2]
[424927066,1781280547000,-1159.98706431,7.997e-05,2]
[424927064,1781280547000,-1159.98706431,7.997e-05,2]
[424927068,1781280547000,-1159.98706431,7.997e-05,2]
[424927063,1781280547000,-1159.98706431,7.997e-05,2]
[424927081,1781280551000,-532.68509825,8.798e-05,2]
[424927074,1781280551000,-6128.10644174,8e-05,2]
[424927075,1781280551000,-160.0,8.01e-05,2]
[424927076,1781280551000,-250.0,8.109e-05,2]
[424927080,1781280551000,-300.0,8.798e-05,2]
[424927079,1781280551000,-255.0,8.796e-05,2]
[424927077,1781280551000,-500.0,8.219e-05,2]
[424927085,1781280551000,-4999.99,9.248e-05,2]
[424927078,1781280551000,-672.58537538,8.549e-05,2]
[424927087,1781280551000,-812.42,9.248e-05,2]
[424927088,1781280551000,-8001.22920725,9.248e-05,2]
[424927082,1781280551000,-250.0,8.8e-05,2]
[424927084,1781280551000,-175.987,9.064e-05,2]
[424927086,1781280551000,-9999.99,9.248e-05,2]
[424927083,1781280551000,-1612.679,9.064e-05,2]
[424927090,1781280554000,-8085.30137736,9.249e-05,2]
[424927089,1781280554000,-16998.76079275,9.248e-05,2]
[424927091,1781280561000,-9105.29613,9.249e-05,2]
[424927094,1781280586000,-1259.23891754,9.249e-05,2]
[424927093,1781280586000,-3298.07543526,9.249e-05,2]
[424927092,1781280586000,-3298.07543526,9.249e-05,2]
[424927096,1781280612000,-3455.18323102,9.249e-05,2]
[424927095,1781280612000,-3455.18323102,9.249e-05,2]
[424927098,1781280614000,2214.94788622,7.997e-05,2]
[424927097,1781280614000,1948.32316134,7.997e-05,2]
[424927104,1781280632000,-1087623.84395254,9.249e-05,2]
[424927103,1781280632000,-308.3712,9.249e-05,2]
[424927105,1781280632000,-20941.72309437,9.249e-05,2]
[424927107,1781280632000,-40999.71060391,9.249e-05,2]
[424927106,1781280632000,-36403.16527247,9.249e-05,2]
[424927178,1781280640000,-680.33,9.249e-05,2]
[424927180,1781280640000,-317.95,9.249e-05,2]
[424927172,1781280640000,-14962.61991983,9.249e-05,2]
[424927175,1781280640000,-4390.94608498,9.249e-05,2]
[424927170,1781280640000,-403.913064,9.249e-05,2]
[424927185,1781280641000,-658.15194705,9.249e-05,2]
[424927224,1781280641000,-60705.72501656,9.249e-05,2]
[424927193,1781280641000,-4238.1828279,9.249e-05,2]
[424927195,1781280641000,-2386.07223726,9.249e-05,2]
[424927190,1781280641000,-1834.83611091,9.249e-05,2]
[424927188,1781280641000,-252192.09661124,9.249e-05,2]
[424927182,1781280641000,-2767.42,9.249e-05,2]
[424927330,1781280643000,-383872.36450929,9.249e-05,2]
[424927331,1781280643000,-1348.04508233,9.249e-05,2]
[424927332,1781280644000,-596.03862771,9.249e-05,2]
[424927338,1781280646000,-336051.45518496,9.249e-05,2]
[424927345,1781280773000,-150.0,8.972e-05,2]
[424927346,1781280820000,-557.53457449,8.448e-05,2]
[424927348,1781280874000,-500.0,8.448e-05,2]
[424927352,1781280926000,-300.0,8.449e-05,2]
[424927353,1781280979000,-3071.423075,8.178e-05,2]
[424927354,1781281033000,-542.93022553,8.449e-05,2]
[424927356,1781281087000,200.0,8.608e-05,7]
[424927355,1781281087000,-250.0,8.47e-05,2]
[424927357,1781281140000,-797.91049134,8.49e-05,2]
[424927358,1781281194000,-300.0,8.491e-05,2]
[424927359,1781281247000,-500.0,8.513e-05,2]
[424927360,1781281309000,491.86,8.133e-05,2]
[424927361,1781281390000,508.14,8.172e-05,2]
[424927362,1781281464000,-491.86,8.172e-05,2]
[424927363,1781281518000,-250.0,8.566e-05,2]
[424927365,1781281540000,-199.44504458,8.599e-05,2]
[424927364,1781281540000,-281.3766743,8.583e-05,2]
[424927366,1781281572000,-100.55495542,8.599e-05,2]
[424927367,1781281572000,-349.92226657,8.599e-05,2]
[424927371,1781281572000,-200.05741048,8.599e-05,2]
[424927370,1781281572000,-500.0,8.599e-05,2]
[424927369,1781281572000,-500.0,8.599e-05,2]
[424927368,1781281572000,-306.71763003,8.599e-05,2]
[424927372,1781281625000,-244.9455866,8.598e-05,2]
[424927373,1781281631000,164.14,6.581e-05,2]
[424927376,1781281635000,-311.70367246,8.598e-05,2]
[424927374,1781281635000,-500.0,8.598e-05,2]
[424927375,1781281635000,-500.0,8.598e-05,2]
[424927377,1781281639000,300.0,8.6e-05,3]
[424927378,1781281641000,700.0,8.7e-05,3]
[424927379,1781281643000,1100.0,8.8e-05,3]
[424927380,1781281645000,1500.0,8.9e-05,3]
[424927381,1781281648000,1900.0,9e-05,3]
[424927395,1781281649000,-500.0,8.598e-05,2]
[424927382,1781281649000,-371.86713839,8.061e-05,2]
[424927383,1781281649000,-200.0,8.26e-05,2]
[424927396,1781281649000,-31.26884873,8.598e-05,2]
[424927384,1781281649000,-188.29632754,8.598e-05,2]
[424927386,1781281649000,-500.0,8.598e-05,2]
[424927388,1781281649000,-500.0,8.598e-05,2]
[424927385,1781281649000,-500.0,8.598e-05,2]
[424927389,1781281649000,-500.0,8.598e-05,2]
[424927390,1781281649000,-500.0,8.598e-05,2]
[424927391,1781281649000,-500.0,8.598e-05,2]
[424927392,1781281649000,-500.0,8.598e-05,2]
[424927393,1781281649000,-500.0,8.598e-05,2]
[424927394,1781281649000,-458.46433557,8.598e-05,2]
[424927387,1781281649000,-500.0,8.598e-05,2]
[424927397,1781281651000,-468.73115127,8.598e-05,2]
[424927398,1781281651000,-185.75670296,8.598e-05,2]
[424927399,1781281678000,-314.24329704,8.598e-05,2]
[424927404,1781281733000,-202.0,8.695e-05,2]
[424927400,1781281733000,-1376.62,8.284e-05,2]
[424927402,1781281733000,-617.92564764,8.598e-05,2]
[424927401,1781281733000,-156.73933523,8.598e-05,2]
[424927403,1781281733000,-150.22196519,8.6e-05,2]
[424927406,1781281733000,-2008.77922308,8.849e-05,2]
[424927407,1781281733000,-822.84077692,8.849e-05,2]
[424927405,1781281733000,-202.0,8.781e-05,2]
[424927408,1781281733000,-202.0,8.867e-05,2]
[424927409,1781281733000,-202.0,8.953e-05,2]
[424927411,1781281733000,-165.57,8.981e-05,2]
[424927410,1781281733000,-546.548599,8.972e-05,2]
[424927412,1781281733000,-689.50619269,8.99e-05,2]
[424927414,1781281744000,-300.0,8.99e-05,2]
[424927413,1781281744000,-1577.2785804,8.99e-05,2]
[424927418,1781281745000,-1291.07788475,8.994e-05,2]
[424927416,1781281745000,-260.25827447,8.994e-05,2]
[424927417,1781281745000,-1024.0406,8.994e-05,2]
[424927415,1781281745000,-1579.71022553,8.994e-05,2]
[424927419,1781281746000,-6016.97176763,8.994e-05,2]
[424927420,1781281756000,-806.3402368,8.994e-05,2]
[424927422,1781281786000,-250.0,8.994e-05,2]
[424927421,1781281786000,-1998.32093237,8.994e-05,2]
[424927423,1781281806000,-1998.32093237,8.994e-05,2]
[424927424,1781281826000,-500.0,8.993e-05,2]
[424927442,1781281831000,-500.0,8.848e-05,2]
[424927441,1781281831000,-500.0,8.848e-05,2]
[424927444,1781281831000,-500.0,8.848e-05,2]
[424927443,1781281831000,-459.93138744,8.848e-05,2]
[424927446,1781281831000,-470.49732446,8.848e-05,2]
[424927451,1781281831000,-500.0,8.848e-05,2]
[424927445,1781281831000,-29.50267554,8.848e-05,2]
[424927449,1781281831000,-500.0,8.848e-05,2]
[424927448,1781281831000,-438.76082827,8.848e-05,2]
[424927450,1781281831000,-500.0,8.848e-05,2]
[424927452,1781281831000,-500.0,8.848e-05,2]
[424927438,1781281831000,-500.0,8.848e-05,2]
[424927447,1781281831000,-61.23917173,8.848e-05,2]
[424927440,1781281831000,-500.0,8.848e-05,2]
[424927432,1781281831000,-500.0,8.848e-05,2]
[424927436,1781281831000,-500.0,8.848e-05,2]
[424927437,1781281831000,-500.0,8.848e-05,2]
[424927435,1781281831000,-500.0,8.848e-05,2]
[424927433,1781281831000,-500.0,8.848e-05,2]
[424927434,1781281831000,-500.0,8.848e-05,2]
[424927431,1781281831000,-500.0,8.848e-05,2]
[424927430,1781281831000,-500.0,8.848e-05,2]
[424927428,1781281831000,-63.75588945,8.848e-05,2]
[424927427,1781281831000,-500.0,8.848e-05,2]
[424927429,1781281831000,-436.24411055,8.848e-05,2]
[424927426,1781281831000,-500.0,8.848e-05,2]
[424927425,1781281831000,-500.0,8.848e-05,2]
[424927439,1781281831000,-500.0,8.848e-05,2]
[424927453,1781281831000,-500.0,8.848e-05,2]
[424927474,1781281831000,-500.0,8.848e-05,2]
[424927454,1781281831000,-500.0,8.848e-05,2]
[424927482,1781281831000,-4299.72291,9.094e-05,2]
[424927455,1781281831000,-500.0,8.848e-05,2]
[424927481,1781281831000,-2500.0,9.049e-05,2]
[424927480,1781281831000,-33280.8127,9.049e-05,2]
[424927479,1781281831000,-156.73933522,9.049e-05,2]
[424927477,1781281831000,-1000.0,9.048e-05,2]
[424927478,1781281831000,-150.0,9.048e-05,2]
[424927475,1781281831000,-275.26816337,8.993e-05,2]
[424927476,1781281831000,-1640.49404608,8.994e-05,2]
[424927471,1781281831000,-500.0,8.848e-05,2]
[424927472,1781281831000,-500.0,8.848e-05,2]
[424927468,1781281831000,-500.0,8.848e-05,2]
[424927470,1781281831000,-500.0,8.848e-05,2]
[424927483,1781281831000,-11347.03678775,9.094e-05,2]
[424927467,1781281831000,-500.0,8.848e-05,2]
[424927469,1781281831000,-500.0,8.848e-05,2]
[424927457,1781281831000,-500.0,8.848e-05,2]
[424927456,1781281831000,-500.0,8.848e-05,2]
[424927458,1781281831000,-500.0,8.848e-05,2]
[424927462,1781281831000,-500.0,8.848e-05,2]
[424927460,1781281831000,-500.0,8.848e-05,2]
[424927473,1781281831000,-495.99313875,8.848e-05,2]
[424927465,1781281831000,-500.0,8.848e-05,2]
[424927461,1781281831000,-500.0,8.848e-05,2]
[424927459,1781281831000,-500.0,8.848e-05,2]
[424927464,1781281831000,-500.0,8.848e-05,2]
[424927466,1781281831000,-500.0,8.848e-05,2]
[424927463,1781281831000,-500.0,8.848e-05,2]
[424927485,1781281832000,-29945.00961052,9.094e-05,2]
[424927484,1781281832000,-20017.51790082,9.094e-05,2]
[424927486,1781281832000,-22209.14140864,9.149e-05,2]
[424927487,1781281832000,-49061.00071845,9.149e-05,2]
[424927488,1781281832000,-53774.1398958,9.149e-05,2]
[424927490,1781281832000,-145.74485249,9.149e-05,2]
[424927492,1781281832000,-856.57435562,9.149e-05,2]
[424927491,1781281832000,-2366.11165329,9.149e-05,2]
[424927493,1781281832000,-480.07323018,9.149e-05,2]
[424927489,1781281832000,-508.0,9.149e-05,2]
[424927552,1781281837000,-440.5,9.149e-05,2]
[424927567,1781281839000,-39946.91234406,9.149e-05,2]
[424927559,1781281839000,-3468.03597417,9.149e-05,2]
[424927553,1781281839000,-2010.03481336,9.149e-05,2]
[424927565,1781281839000,-459195.05894425,9.149e-05,2]
[424927576,1781281840000,-316.02530023,9.149e-05,2]
[424927575,1781281840000,-680.41,9.149e-05,2]
[424927577,1781281840000,-372.82777999,9.149e-05,2]
[424927625,1781281843000,-206.29970079,9.149e-05,2]
[424927593,1781281843000,-1567.23387285,9.149e-05,2]
[424927594,1781281843000,-1421.88484005,9.149e-05,2]
[424927626,1781281845000,-2357.52179701,9.149e-05,2]
[424927628,1781281846000,-405.26602891,9.149e-05,2]
[424927629,1781281846000,-1144.57075409,9.149e-05,2]
[424927627,1781281846000,-638.76986886,9.149e-05,2]
[424927636,1781281879000,-4851.44063971,9.149e-05,2]
[424927641,1781282053000,-150.0,8.608e-05,2]
[424927642,1781282108000,-500.0,8.846e-05,2]
[424927643,1781282161000,-500.0,8.196e-05,2]
[424927644,1781282181000,-178.75,8.196e-05,2]
[424927645,1781282234000,-150.0,7.798e-05,2]
[424927646,1781282288000,-500.0,8.04e-05,2]
[424927647,1781282308000,-387.95058884,8.04e-05,2]
[424927648,1781282328000,-387.95058884,8.04e-05,2]
[424927649,1781282348000,-500.0,8.04e-05,2]
[424927650,1781282368000,-202.61882232,8.04e-05,2]
[424927651,1781282539000,200.0,8.6e-05,3]
[424927652,1781282540000,500.0,8.7e-05,3]
[424927653,1781282542000,700.0,8.8e-05,3]
[424927654,1781282544000,1000.0,8.9e-05,3]
[424927655,1781282546000,1200.0,9e-05,3]
[424927656,1781282637000,-312.56003621,8.16e-05,2]
[424927657,1781282689000,-437.00100012,8.041e-05,2]
[424927658,1781282713000,-500.0,8.041e-05,2]
[424927659,1781282734000,-155.14899988,8.041e-05,2]
[424927660,1781282788000,-192.374653,8.041e-05,2]
[424927661,1781282841000,-163.86,8.219e-05,2]
[424927662,1781282861000,164.14,6.744e-05,2]
[424927663,1781282895000,-197.2,8.219e-05,2]
[424927664,1781282948000,-316.37527365,7.983e-05,2]
[424927665,1781282969000,-316.37527365,7.968e-05,2]
[424927666,1781282970000,-248.97472635,7.968e-05,2]
[424927667,1781282970000,-2369.08472635,7.983e-05,2]
[424927668,1781282970000,-250.0,8.237e-05,2]
[424927669,1781282970000,-500.0,8.298e-05,2]
[424927671,1781282970000,-500.0,8.298e-05,2]
[424927670,1781282970000,-500.0,8.298e-05,2]
[424927672,1781282970000,-500.0,8.298e-05,2]
[424927673,1781282970000,-500.0,8.298e-05,2]
[424927675,1781282970000,-500.0,8.298e-05,2]
[424927674,1781282970000,-381.17898734,8.298e-05,2]
[424927676,1781282970000,-500.0,8.298e-05,2]
[424927680,1781282970000,-150.0,8.318e-05,2]
[424927678,1781282970000,-1346.32,8.3e-05,2]
[424927679,1781282970000,-721.9,8.3e-05,2]
[424927677,1781282970000,-1356.29,8.3e-05,2]
[424927690,1781282970000,-10278.62763868,8.609e-05,2]
[424927689,1781282970000,-5826.49489919,8.609e-05,2]
[424927688,1781282970000,-2207.82871085,8.609e-05,2]
[424927687,1781282970000,-542.68771436,8.608e-05,2]
[424927691,1781282970000,-10456.26364626,8.609e-05,2]
[424927686,1781282970000,-500.0,8.608e-05,2]
[424927683,1781282970000,-150.0,8.565e-05,2]
[424927684,1781282970000,-150.0,8.608e-05,2]
[424927682,1781282970000,-150.0,8.483e-05,2]
[424927681,1781282970000,-150.0,8.401e-05,2]
[424927685,1781282970000,-171.46191062,8.608e-05,2]
[424927694,1781282971000,-150.0,8.73e-05,2]
[424927695,1781282971000,-300.0,8.764e-05,2]
[424927692,1781282971000,-4919.94857686,8.609e-05,2]
[424927693,1781282971000,-150.0,8.648e-05,2]
[424927696,1781282990000,-150.0,8.813e-05,2]
[424927698,1781282991000,-300.0,8.845e-05,2]
[424927697,1781282991000,-1548.7230177,8.845e-05,2]
[424927700,1781282991000,-500.0,8.845e-05,2]
[424927702,1781282991000,-250.0,8.845e-05,2]
[424927699,1781282991000,-300.0,8.845e-05,2]
[424927703,1781282991000,-153.74141212,8.849e-05,2]
[424927704,1781282991000,-2094.44226514,8.849e-05,2]
[424927701,1781282991000,-296.0382393,8.845e-05,2]
[424927706,1781283002000,452.99077123,8.247e-05,2]
[424927705,1781283002000,226.49538561,8.219e-05,2]
[424927714,1781283004000,355.8088239,8.219e-05,2]
[424927712,1781283004000,472.63307814,8.219e-05,2]
[424927713,1781283004000,630.17743752,8.247e-05,2]
[424927710,1781283004000,315.08871876,8.219e-05,2]
[424927711,1781283004000,711.61764781,8.247e-05,2]
[424927708,1781283004000,157.54435938,8.219e-05,2]
[424927709,1781283004000,533.71323586,8.219e-05,2]
[424927707,1781283004000,177.90441195,8.219e-05,2]
[424927716,1781283006000,239.49646641,8.219e-05,2]
[424927715,1781283006000,165.61875291,8.247e-05,2]
[424927718,1781283006000,398.70668996,8.219e-05,2]
[424927717,1781283006000,478.99293282,8.247e-05,2]
[424927719,1781283007000,598.06003495,8.219e-05,2]
[424927720,1781283007000,797.41337993,8.247e-05,2]
[424927721,1781283007000,199.35334498,8.219e-05,2]
[424927722,1781283007000,213.69081403,8.247e-05,2]
[424927726,1781283007000,493.92360425,8.219e-05,2]
[424927724,1781283007000,221.79841334,8.219e-05,2]
[424927725,1781283007000,246.96180212,8.219e-05,2]
[424927727,1781283007000,740.88540637,8.247e-05,2]
[424927723,1781283007000,160.74161205,8.247e-05,2]
[424927728,1781283008000,178.14738175,8.219e-05,2]
[424927729,1781283008000,356.2947635,8.219e-05,2]
[424927730,1781283008000,534.44214525,8.219e-05,2]
[424927731,1781283008000,890.73690875,8.371e-05,2]
[424927733,1781283008000,1068.88429049,8.557e-05,2]
[424927732,1781283008000,712.589527,8.247e-05,2]
[424927735,1781283008000,459.94318004,8.219e-05,2]
[424927736,1781283008000,347.5512272,8.219e-05,2]
[424927734,1781283008000,153.31439335,8.219e-05,2]
[424927738,1781283008000,173.7756136,8.219e-05,2]
[424927746,1781283008000,1042.65368159,8.557e-05,2]
[424927745,1781283008000,919.88636008,8.557e-05,2]
[424927743,1781283008000,306.62878669,8.219e-05,2]
[424927744,1781283008000,868.87806799,8.371e-05,2]
[424927737,1781283008000,613.25757339,8.247e-05,2]
[424927741,1781283008000,766.57196674,8.371e-05,2]
[424927740,1781283008000,521.32684079,8.219e-05,2]
[424927739,1781283008000,164.794211,8.247e-05,2]
[424927742,1781283008000,695.10245439,8.247e-05,2]
[424927754,1781283009000,1024.08012526,8.557e-05,2]
[424927751,1781283009000,682.72008351,8.247e-05,2]
[424927752,1781283009000,853.40010438,8.371e-05,2]
[424927749,1781283009000,341.36004175,8.219e-05,2]
[424927750,1781283009000,512.04006263,8.219e-05,2]
[424927748,1781283009000,165.2776944,8.219e-05,2]
[424927747,1781283009000,330.5553888,8.247e-05,2]
[424927753,1781283009000,170.68002088,8.219e-05,2]
[424927755,1781283010000,412.44932387,8.247e-05,2]
[424927756,1781283010000,173.69094567,8.219e-05,2]
[424927757,1781283010000,347.38189134,8.219e-05,2]
[424927759,1781283011000,430.67921059,8.247e-05,2]
[424927758,1781283011000,215.33960529,8.219e-05,2]
[424927768,1781283013000,427.61725952,8.247e-05,2]
[424927763,1781283013000,385.40643577,8.247e-05,2]
[424927762,1781283013000,173.69856273,8.219e-05,2]
[424927760,1781283013000,347.39712545,8.247e-05,2]
[424927764,1781283013000,-1247.03167224,8.835e-05,2]
[424927766,1781283013000,-1011.76757433,8.835e-05,2]
[424927767,1781283013000,213.80862976,8.219e-05,2]
[424927765,1781283013000,-1073.20075343,8.835e-05,2]
[424927761,1781283013000,521.07283701,8.247e-05,2]
[424927773,1781283014000,225.59170299,8.219e-05,2]
[424927772,1781283014000,451.18340598,8.247e-05,2]
[424927770,1781283014000,584.3572354,8.247e-05,2]
[424927771,1781283014000,389.57149027,8.219e-05,2]
[424927769,1781283014000,194.78574513,8.219e-05,2]
[424927774,1781283016000,166.70520269,8.219e-05,2]
[424927775,1781283016000,666.82081077,8.247e-05,2]
[424927777,1781283016000,500.11560808,8.219e-05,2]
[424927778,1781283016000,833.52601346,8.371e-05,2]
[424927779,1781283016000,1000.23121615,8.557e-05,2]
[424927776,1781283016000,333.41040538,8.219e-05,2]
[424927784,1781283017000,636.47361119,8.219e-05,2]
[424927783,1781283017000,1591.18402798,8.371e-05,2]
[424927781,1781283017000,212.32150357,8.557e-05,2]
[424927782,1781283017000,1697.09933001,8.557e-05,2]
[424927780,1781283017000,954.71041679,8.219e-05,2]
[424927785,1781283018000,318.2368056,8.219e-05,2]
[424927786,1781283018000,1272.94722238,8.247e-05,2]
[424927787,1781283020000,169.20957628,8.247e-05,2]
[424927788,1781283021000,165.33267872,8.247e-05,2]
[424927793,1781283031000,-1166.93641884,8.835e-05,2]
[424927792,1781283031000,-182.9925718,8.835e-05,2]
[424927794,1781283031000,-1550.07100936,8.835e-05,2]
[424927795,1781283031000,-677.58662981,8.835e-05,2]
[424927797,1781283031000,-212.28702723,8.845e-05,2]
[424927796,1781283031000,-160.0,8.835e-05,2]
[424927799,1781283031000,-212.28702721,8.847e-05,2]
[424927801,1781283031000,-212.28702721,8.849e-05,2]
[424927806,1781283031000,-1948.5894,8.849e-05,2]
[424927802,1781283031000,-2062.66677367,8.849e-05,2]
[424927804,1781283031000,-112899.16528404,8.849e-05,2]
[424927798,1781283031000,-250.0,8.847e-05,2]
[424927803,1781283031000,-437.33322633,8.849e-05,2]
[424927800,1781283031000,-300.0,8.848e-05,2]
[424927805,1781283031000,-1295.77381553,8.849e-05,2]
[424927833,1781283037000,-99856.13337425,8.849e-05,2]
[424927832,1781283037000,-1278.46,8.849e-05,2]
[424927835,1781283038000,-4481.03597986,8.849e-05,2]
[424927834,1781283038000,-4851.44063971,8.849e-05,2]
[424927865,1781283040000,-160.0,9.451e-05,2]
[424927871,1781283040000,-250.0,9.73e-05,2]
[424927866,1781283040000,-500.0,9.452e-05,2]
[424927870,1781283040000,-300.0,9.73e-05,2]
[424927867,1781283040000,-255.0,9.469e-05,2]
[424927868,1781283040000,-358.17224649,9.674e-05,2]
[424927873,1781283040000,-2864.13125037,9.879e-05,2]
[424927872,1781283040000,-1379.82954013,9.879e-05,2]
[424927869,1781283040000,-165.57,9.722e-05,2]
[424927876,1781283040000,-4176.87204036,0.0001,2]
[424927875,1781283040000,-565.35,9.96e-05,2]
[424927877,1781283040000,-151.0,0.0001,2]
[424927879,1781283040000,-914.7,0.00010027,2]
[424927863,1781283040000,-500.0,9.315e-05,2]
[424927883,1781283040000,-914.7,0.00010278,2]
[424927882,1781283040000,-500.0,0.00010274,2]
[424927881,1781283040000,-163.86,0.00010274,2]